bitfinex/quotes_BTCUSD_20260101
["timestamp","ask_amount","ask_price","bid_price","bid_amount"]
[1767301736512,3e-07,88352.0,88346.0,0.01131913]
[1767301736730,3e-07,88352.0,88345.0,0.01131925]
[1767301736931,3e-07,88352.0,88347.0,0.011319]
[1767301737163,0.04560946,88352.0,88346.0,0.01131913]
[1767301737370,0.04560946,88352.0,88343.0,0.01131951]
[1767301737585,0.04560946,88352.0,88345.0,0.01131925]
[1767301738448,0.04596204,88352.0,88345.0,0.01131925]
[1767301738862,0.04596204,88352.0,88347.0,0.011319]
[1767301739290,0.00035288,88352.0,88347.0,0.011319]
[1767301739716,0.00035288,88352.0,88346.0,0.01131913]
[1767301740462,0.00035288,88352.0,88344.0,0.01131938]
[1767301740879,0.00035288,88352.0,88345.0,0.01131925]
[1767301741098,0.00035288,88352.0,88344.0,0.01131938]
[1767301741310,0.00035288,88352.0,88346.0,0.01131913]
[1767301741513,0.00035288,88352.0,88345.0,0.01131925]
[1767301741714,0.00035288,88352.0,88343.0,0.01131951]
[1767301741921,0.00035288,88352.0,88345.0,0.01131925]
[1767301742314,0.00035288,88352.0,88339.0,0.22639895]
[1767301742315,0.000347,88345.0,88341.0,0.01132]
[1767301742516,0.04560916,88348.0,88341.0,0.01132]
[1767301743463,0.04560916,88348.0,88341.0,0.01046548]
[1767301744936,0.00035288,88352.0,88341.0,0.02178525]
[1767301745217,0.00035288,88352.0,88341.0,0.01046548]
[1767301747180,0.04596204,88352.0,88341.0,0.01046548]
[1767301748092,0.04596204,88352.0,88341.0,0.02178525]
[1767301748302,0.04596204,88352.0,88341.0,0.01046548]
[1767301748738,0.04596204,88352.0,88341.0,0.02178525]
[1767301748944,0.04596204,88352.0,88341.0,0.01046548]
[1767301750321,0.04596204,88352.0,88341.0,0.01011848]
[1767301753189,0.04596204,88352.0,88342.0,0.01131964]
[1767301753784,0.04596204,88352.0,88341.0,0.02143825]
[1767301754957,0.04596204,88352.0,88342.0,0.01131964]
[1767301755182,0.04596204,88352.0,88341.0,0.02143825]
[1767301755395,0.04596204,88352.0,88342.0,0.01131964]
[1767301755608,0.04596204,88352.0,88341.0,0.02143825]
[1767301756635,0.04596204,88352.0,88342.0,0.01131964]
[1767301757808,0.04596204,88352.0,88341.0,0.02143825]
[1767301759697,0.04596204,88352.0,88341.0,0.01011848]
[1767301760117,0.04596204,88352.0,88341.0,0.02143825]
[1767301761526,0.04596204,88352.0,88341.0,0.01011848]
[1767301762333,0.04596204,88352.0,88341.0,0.02143825]
[1767301762682,0.04596204,88352.0,88342.0,0.01131964]
[1767301763530,0.04596204,88352.0,88341.0,0.02143825]
[1767301763934,0.04541304,88352.0,88344.0,0.01131938]
[1767301764138,0.04541304,88352.0,88342.0,0.01131964]
[1767301764330,0.04541304,88352.0,88343.0,0.01131951]
[1767301766920,0.04541304,88352.0,88342.0,0.01131964]
[1767301767675,0.04541304,88352.0,88343.0,0.01131951]
[1767301768269,0.45187556,88360.0,88343.0,0.01131951]
[1767301768408,0.03508303,88359.0,88343.0,0.05893028]
[1767301768614,0.03508303,88358.0,88343.0,0.04761077]
[1767301768809,0.02446468,88357.0,88343.0,0.04761077]
[1767301769016,0.02446468,88356.0,88343.0,0.04761077]
[1767301769325,0.02446468,88355.0,88343.0,0.05893028]
[1767301769528,0.02446468,88354.0,88342.0,0.01131964]
[1767301769863,0.01142569,88360.0,88343.0,0.05893028]
[1767301770059,0.03508411,88359.0,88343.0,0.04761077]
[1767301770253,0.03508411,88358.0,88343.0,0.04761077]
[1767301770488,0.03508411,88357.0,88343.0,0.04761077]
[1767301770693,0.02446544,88356.0,88343.0,0.04761077]
[1767301770832,0.02446544,88355.0,88343.0,0.04761077]
[1767301771037,0.02446544,88354.0,88343.0,0.04761077]
[1767301771231,0.04758055,88359.0,88343.0,0.04761077]
[1767301771480,0.03508475,88358.0,88343.0,0.04761077]
[1767301771720,0.03508475,88357.0,88343.0,0.05893028]
[1767301771908,0.02446617,88356.0,88343.0,0.05893028]
[1767301772117,0.02446617,88355.0,88343.0,0.05893028]
[1767301772331,0.02446617,88354.0,88343.0,0.05893028]
[1767301772546,0.04758055,88359.0,88343.0,0.05893028]
[1767301772705,0.03508799,88358.0,88343.0,0.04761077]
[1767301773084,0.03508799,88357.0,88343.0,0.04761077]
[1767301773358,0.02446814,88356.0,88343.0,0.04761077]
[1767301773501,0.02446814,88355.0,88343.0,0.05893028]
[1767301773705,0.02446814,88354.0,88344.0,0.01131938]
[1767301773920,0.04758055,88359.0,88344.0,0.01131938]
[1767301774126,0.03508763,88358.0,88344.0,0.01131938]
[1767301774346,0.03508763,88357.0,88343.0,0.05893028]
[1767301774522,0.02446789,88356.0,88343.0,0.05893028]
[1767301774870,0.02446789,88355.0,88343.0,0.05127278]
[1767301775077,0.02446789,88354.0,88343.0,0.05127278]
[1767301775232,0.04758055,88359.0,88343.0,0.03995327]
[1767301775432,0.0350876,88358.0,88343.0,0.05127278]
[1767301775634,0.0350876,88357.0,88343.0,0.05127278]
[1767301775831,0.02446787,88356.0,88343.0,0.05127278]
[1767301776092,0.02446787,88355.0,88343.0,0.05127278]
[1767301776291,0.02446787,88354.0,88344.0,0.01131938]
[1767301776516,0.04758055,88358.0,88344.0,0.01131938]
[1767301776687,0.03508753,88357.0,88344.0,0.01131938]
[1767301776833,0.02446782,88356.0,88343.0,0.05127278]
[1767301777195,0.02446782,88355.0,88344.0,0.01131938]
[1767301777395,0.02446782,88354.0,88344.0,0.01131938]
[1767301777616,0.04758055,88358.0,88344.0,0.01131938]
[1767301777776,0.03508749,88357.0,88344.0,0.01131938]
[1767301778024,0.0244678,88356.0,88344.0,0.01131938]
[1767301778233,0.0244678,88355.0,88344.0,0.01131938]
[1767301778420,0.0244678,88354.0,88344.0,0.01131938]
[1767301778601,0.04758055,88358.0,88344.0,0.01131938]
[1767301778790,0.03508746,88357.0,88344.0,0.01131938]
[1767301778987,0.02446777,88356.0,88344.0,0.01131938]
[1767301779305,0.02446777,88355.0,88344.0,0.01131938]
[1767301779506,0.02446777,88354.0,88345.0,0.01131925]
[1767301779738,0.04758055,88358.0,88343.0,0.05127278]
[1767301780075,0.03508747,88357.0,88343.0,0.05127278]
[1767301780245,0.02446778,88356.0,88344.0,0.01131938]
[1767301780451,0.00010569,88360.0,88353.0,0.01131823]
[1767301780653,0.00010569,88360.0,88353.0,0.01132]
[1767301781163,0.00010569,88360.0,88353.0,0.02263823]
[1767301781365,0.00010569,88360.0,88354.0,0.04761077]
[1767301782574,0.00010569,88360.0,88357.0,0.01131772]
[1767301783582,0.00010569,88360.0,88355.0,0.01131797]
[1767301783962,0.00010569,88360.0,88356.0,0.01131785]
[1767301784203,0.00010569,88360.0,88355.0,0.05892874]
[1767301784972,0.00010569,88360.0,88355.0,0.04761077]
[1767301785172,0.00010569,88360.0,88355.0,0.05892874]
[1767301785627,0.00010569,88360.0,88354.0,0.0113181]
[1767301786034,0.00010569,88360.0,88355.0,0.01131797]
[1767301786803,0.00010569,88360.0,88354.0,0.0113181]
[1767301787631,0.00010569,88360.0,88355.0,0.01131797]
[1767301787832,0.00010569,88360.0,88353.0,0.01132]
[1767301788531,0.00010569,88360.0,88354.0,0.0113181]
[1767301789134,0.00010569,88360.0,88355.0,0.01131797]
[1767301789386,0.00010569,88360.0,88357.0,0.01131772]
[1767301790163,0.00010569,88360.0,88355.0,0.01131797]
[1767301790349,0.00010569,88360.0,88357.0,0.01131772]
[1767301791196,0.00010569,88360.0,88356.0,0.01131785]
[1767301791537,0.00010569,88360.0,88355.0,0.01131797]
[1767301792034,0.00010569,88360.0,88354.0,0.0113181]
[1767301792729,0.00010569,88360.0,88355.0,0.01131797]
[1767301792874,0.00010569,88360.0,88354.0,0.0113181]
[1767301793278,0.04758055,88359.0,88355.0,0.01131797]
[1767301793474,0.04758055,88359.0,88353.0,0.02263823]
[1767301793680,0.04758055,88359.0,88355.0,0.01131797]
[1767301794616,0.00010569,88360.0,88355.0,0.01131797]
[1767301796298,0.00010569,88360.0,88354.0,0.0113181]
[1767301796533,0.00010569,88360.0,88355.0,0.01131797]
[1767301796976,0.00010569,88360.0,88354.0,0.0113181]
[1767301797210,0.00010569,88360.0,88357.0,0.01131772]
[1767301797411,0.00010569,88360.0,88356.0,0.01131785]
[1767301797695,0.00010569,88360.0,88357.0,0.01131772]
[1767301800788,6.9e-07,88360.0,88357.0,0.01131772]
[1767301805430,6.9e-07,88360.0,88356.0,0.01131785]
[1767301807008,6.9e-07,88360.0,88357.0,0.01131772]
[1767301807825,6.9e-07,88360.0,88356.0,0.01131785]
[1767301808443,6.9e-07,88360.0,88357.0,0.01131772]
[1767301808646,6.9e-07,88360.0,88356.0,0.01131785]
[1767301809899,6.9e-07,88360.0,88357.0,0.01131772]
[1767301810846,6.9e-07,88360.0,88358.0,0.1056179]
[1767301811088,6.9e-07,88360.0,88359.0,0.04902993]
[1767301811492,6.9e-07,88360.0,88358.0,0.05658797]
[1767301811775,6.9e-07,88360.0,88357.0,0.01131772]
[1767301812794,6.9e-07,88360.0,88358.0,0.1056179]
[1767301813656,6.9e-07,88360.0,88358.0,0.05658797]
[1767301813808,6.9e-07,88360.0,88357.0,0.01131772]
[1767301816751,6.9e-07,88360.0,88356.0,0.01131785]
[1767301816951,6.9e-07,88360.0,88356.0,0.01121385]
[1767301817156,6.9e-07,88360.0,88357.0,0.01131772]
[1767301817901,6.9e-07,88360.0,88356.0,0.01121385]
[1767301818060,6.9e-07,88360.0,88357.0,0.01131772]
[1767301819248,6.9e-07,88360.0,88356.0,0.01121385]
[1767301820923,6.9e-07,88360.0,88357.0,0.01131772]
[1767301822961,6.9e-07,88360.0,88357.0,0.0679058]
[1767301823320,6.9e-07,88360.0,88358.0,0.05658742]
[1767301825522,0.04947374,88371.0,88362.0,0.01131708]
[1767301825523,0.04726205,88371.0,88362.0,0.01131708]
[1767301825721,0.04726205,88371.0,88363.0,0.01131695]
[1767301825929,0.04726205,88371.0,88365.0,0.01131669]
[1767301826129,0.04726205,88371.0,88364.0,0.01131682]
[1767301826692,0.04726205,88371.0,88365.0,0.01131669]
[1767301826892,0.04726205,88371.0,88366.0,0.01131656]
[1767301827040,0.00023947,88375.0,88366.0,0.01131656]
[1767301827266,0.00023947,88375.0,88362.0,0.22633984]
[1767301827586,0.00023947,88375.0,88373.0,0.05657826]
[1767301827587,4.7e-07,88375.0,88373.0,0.05657826]
[1767301827764,0.000239,88373.0,88372.0,0.06789467]
[1767301828187,4.7e-07,88375.0,88372.0,0.06789467]
[1767301829151,4.7e-07,88375.0,88371.0,0.01131592]
[1767301829396,0.00055,88372.0,88369.0,0.01131618]
[1767301829917,0.0453398,88375.0,88371.0,0.01131592]
[1767301830122,0.0453398,88375.0,88372.0,0.0113158]
[1767301830469,0.000239,88372.0,88371.0,0.01131592]
[1767301830670,0.000239,88372.0,88371.0,0.06789556]
[1767301830896,0.0453398,88375.0,88371.0,0.01131592]
[1767301831470,4.7e-07,88375.0,88372.0,0.0113158]
[1767301831654,4.7e-07,88375.0,88372.0,0.0110768]
[1767301831998,4.7e-07,88375.0,88372.0,0.00531643]
[1767301833089,4.7e-07,88375.0,88371.0,0.01131592]
[1767301833201,4.7e-07,88375.0,88372.0,0.0113158]
[1767301847287,4.7e-07,88375.0,88372.0,0.06789427]
[1767301856152,4.7e-07,88375.0,88370.0,0.06789623]
[1767301856153,0.00055,88372.0,88370.0,0.01131605]
[1767301856352,0.00055,88372.0,88369.0,0.01131618]
[1767301856751,4.7e-07,88375.0,88371.0,0.01131592]
[1767301857469,0.00055,88371.0,88370.0,0.01131605]
[1767301857871,4.7e-07,88375.0,88370.0,0.01131605]
[1767301858170,4.7e-07,88375.0,88371.0,0.01131592]
[1767301858766,4.7e-07,88375.0,88372.0,0.0113158]
[1767301859152,4.7e-07,88375.0,88372.0,0.06789463]
[1767301861901,4.7e-07,88379.0,88378.0,0.04673869]
[1767301862032,0.0001473,88388.0,88381.0,0.04673869]
[1767301862218,0.0001473,88388.0,88380.0,0.01131477]
[1767301862219,0.0004,88389.0,88383.0,0.04673869]
[1767301862413,0.00054159,88384.0,88383.0,0.04673869]
[1767301863846,5.9e-07,88384.0,88381.0,0.01131464]
[1767301864071,0.0004,88389.0,88382.0,0.03746841]
[1767301864272,0.0004,88389.0,88386.0,0.011314]
[1767301864424,0.0004,88389.0,88387.0,0.01132]
[1767301865678,0.0004,88394.0,88388.0,0.02615389]
[1767301865856,0.0004,88397.0,88389.0,0.01077262]
[1767301866293,0.0004,88397.0,88390.0,0.01131349]
[1767301866499,0.0004,88397.0,88390.0,0.01076349]
[1767301867097,0.0004,88397.0,88391.0,0.01131336]
[1767301867464,0.0004,88397.0,88393.0,0.01131311]
[1767301867663,0.0004,88397.0,88394.0,0.01132]
[1767301873600,0.04913702,88396.0,88394.0,0.01132]
[1767301874588,0.0005473,88396.0,88394.0,0.01132]
[1767301874905,0.04913702,88396.0,88394.0,0.01132]
[1767301879269,0.0005473,88396.0,88394.0,0.01132]
[1767301882428,0.0005473,88396.0,88394.0,0.00366895]
[1767301885500,3e-07,88396.0,88394.0,0.00366895]
[1767301888099,3e-07,88396.0,88394.0,0.00312195]
[1767301904038,3e-07,88396.0,88395.0,0.05656428]
[1767301904243,3e-07,88396.0,88394.0,0.00312195]
[1767301909350,3e-07,88396.0,88394.0,0.05968634]
[1767301909553,3e-07,88396.0,88394.0,0.00312195]
[1767301912970,3e-07,88396.0,88395.0,0.05656428]
[1767301914694,3e-07,88396.0,88395.0,0.05599462]
[1767301920386,0.04546713,88405.0,88401.0,0.01131208]
[1767301920387,0.0001473,88405.0,88401.0,0.01131208]
[1767301920585,0.0001473,88405.0,88402.0,0.02263196]
[1767301922241,0.0001473,88405.0,88402.0,0.07919114]
[1767301923656,1e-08,88405.0,88404.0,0.05655852]
[1767301924088,0.0001473,88414.0,88404.0,0.05655852]
[1767301924089,0.0001473,88414.0,88408.0,0.01131119]
[1767301924294,0.04813011,88414.0,88407.0,0.01131132]
[1767301924570,0.04813011,88414.0,88405.0,0.01131157]
[1767301924774,0.04813011,88414.0,88406.0,0.01131144]
[1767301925156,0.04813011,88414.0,88407.0,0.01131132]
[1767301925316,0.04813011,88414.0,88408.0,0.01131119]
[1767301925771,0.04813011,88414.0,88407.0,0.01131132]
[1767301925977,0.00575735,88410.0,88407.0,0.0678673]
[1767301926182,0.00520835,88410.0,88408.0,0.01131119]
[1767301926535,0.0001473,88414.0,88410.0,0.01131093]
[1767301927337,0.0001473,88414.0,88411.0,0.0113108]
[1767301927888,3e-07,88414.0,88412.0,0.0565534]
[1767301928382,3e-07,88414.0,88412.0,0.0564074]
[1767301929213,8.395e-05,88414.0,88412.0,0.0564074]
[1767301945723,8.395e-05,88414.0,88413.0,0.02014554]
[1767301946386,8.395e-05,88414.0,88412.0,0.0564074]
[1767301946697,8.395e-05,88414.0,88412.0,0.07655294]
[1767301947353,0.01130735,88438.0,88412.0,0.07655294]
[1767301947354,0.00452797,88439.0,88426.0,0.01130889]
[1767301947558,0.00055,88426.0,88425.0,0.01130901]
[1767301947738,0.04852886,88431.0,88427.0,0.01130876]
[1767301947955,0.04852886,88438.0,88429.0,0.0113085]
[1767301948149,0.04852886,88438.0,88427.0,0.01130876]
[1767301948673,0.04852886,88438.0,88426.0,0.01130889]
[1767301948874,0.04852886,88438.0,88427.0,0.01130876]
[1767301949277,0.0004,88432.0,88427.0,0.01130876]
[1767301949458,0.0004,88432.0,88426.0,0.01130889]
[1767301949656,0.0004,88432.0,88428.0,0.01130863]
[1767301950025,0.0004,88432.0,88427.0,0.02262876]
[1767301950322,0.0004,88432.0,88428.0,0.01130863]
[1767301950528,0.0004,88432.0,88427.0,0.02262876]
[1767301950771,0.0004,88432.0,88427.0,0.01132]
[1767301950970,0.0004,88432.0,88428.0,0.01130863]
[1767301951172,0.0004,88432.0,88427.0,0.02262876]
[1767301955128,0.0004,88432.0,88427.0,0.01132]
[1767301956254,0.0004,88432.0,88427.0,0.02262876]
[1767301956700,0.0004,88432.0,88427.0,0.01132]
[1767301957025,0.0004,88432.0,88427.0,0.02262876]
[1767301957572,0.04892886,88432.0,88427.0,0.01132]
[1767301959655,0.04892886,88432.0,88418.0,0.01130991]
[1767301959873,0.04892886,88432.0,88421.0,0.01130953]
[1767301960038,0.04892886,88432.0,88419.0,0.02262978]
[1767301960039,0.04852886,88429.0,88423.0,0.01130927]
[1767301960242,0.04852886,88439.0,88430.0,0.01130837]
[1767301960444,0.04888082,88439.0,88430.0,0.01130837]
[1767301960626,0.04888082,88439.0,88431.0,0.01130825]
[1767301961033,0.04888082,88439.0,88430.0,0.01130837]
[1767301961995,0.04888082,88439.0,88431.0,0.01130825]
[1767301962292,0.04888082,88439.0,88430.0,0.01130837]
[1767301962498,0.04888082,88439.0,88429.0,0.0113085]
[1767301962980,0.04888082,88439.0,88431.0,0.01130825]
[1767301963132,0.04888082,88439.0,88429.0,0.0113085]
[1767301963537,0.04888082,88439.0,88430.0,0.01130837]
[1767301964531,0.04888082,88439.0,88431.0,0.01130825]
[1767301964733,0.04888082,88439.0,88431.0,0.06784905]
[1767301964964,0.04888082,88439.0,88430.0,0.01130837]
[1767301966152,0.04888082,88439.0,88431.0,0.01130825]
[1767301968011,0.04888082,88439.0,88430.0,0.01130837]
[1767301968225,0.04888082,88439.0,88431.0,0.01130825]
[1767301968398,0.04888082,88439.0,88430.0,0.01130837]
[1767301968704,0.04888082,88439.0,88431.0,0.01130825]
[1767301969240,0.00035196,88439.0,88429.0,0.0113085]
[1767301969446,0.00035196,88439.0,88430.0,0.01130837]
[1767301972183,0.00035196,88439.0,88429.0,0.0113085]
[1767301972385,0.00035196,88439.0,88428.0,0.01130863]
[1767301972601,0.04888082,88439.0,88427.0,0.01130876]
[1767301972836,0.04888082,88439.0,88426.0,0.02262889]
[1767301972999,0.04888082,88439.0,88426.0,0.01132]
[1767301980675,0.04888082,88439.0,88426.0,0.02262889]
[1767301980835,0.04888082,88439.0,88426.0,0.01132]
[1767301981030,0.04888082,88439.0,88426.0,0.02262889]
[1767301982166,0.5921,88520.0,88426.0,0.02262889]
[1767301982167,0.5921,88520.0,88440.0,0.0113071]
[1767301982168,0.0001861,88448.0,88440.0,0.0113071]
[1767301982392,0.0002,88460.0,88440.0,0.0113071]
[1767301982393,0.03052347,88465.0,88458.0,0.04540285]
[1767301982609,0.0001837,88470.0,88460.0,0.04540285]
[1767301983014,0.0001837,88470.0,88461.0,0.01130441]
[1767301983221,0.0001837,88470.0,88460.0,0.04536021]
[1767301983522,0.0001837,88470.0,88463.0,0.01130416]
[1767301984034,0.0001837,88470.0,88461.0,0.01130441]
[1767301984194,0.0001837,88470.0,88460.0,0.05666475]
[1767301984533,0.0001837,88470.0,88460.0,0.11318736]
[1767301985257,0.0001837,88470.0,88462.0,0.05652132]
[1767301985475,0.0001837,88470.0,88464.0,0.01130403]
[1767301985692,0.0001837,88470.0,88465.0,0.0113039]
[1767301985932,0.0001837,88470.0,88466.0,0.01130377]
[1767301986150,0.0001837,88470.0,88465.0,0.0113039]
[1767301986600,0.0001837,88470.0,88463.0,0.01130416]
[1767301986815,0.0001837,88470.0,88464.0,0.01130403]
[1767301986969,0.0001837,88470.0,88465.0,0.0113039]
[1767301987373,7e-07,88470.0,88467.0,0.01130364]
[1767301987710,7e-07,88470.0,88466.0,0.01130377]
[1767301987921,7e-07,88470.0,88458.0,0.04540285]
[1767301987922,0.0001837,88481.0,88478.0,0.01130224]
[1767301987923,1e-08,88481.0,88478.0,0.01130224]
[1767301988080,0.01150416,88485.0,88478.0,0.01130224]
[1767301988081,0.0002,88485.0,88479.0,0.06802496]
[1767301988277,0.0002,88489.0,88482.0,0.01130173]
[1767301988701,0.0002,88489.0,88483.0,0.0113016]
[1767301989103,0.0002,88489.0,88479.0,0.05672285]
[1767301989311,0.000383,88483.0,88479.0,0.02262211]
[1767301989570,0.0002,88489.0,88480.0,0.01130198]
[1767301989748,0.0002,88489.0,88481.0,0.01130186]
[1767301990144,0.04878019,88489.0,88479.0,0.01132]
[1767301990313,0.04878019,88489.0,88480.0,0.01130198]
[1767301990512,0.04878019,88489.0,88479.0,0.02262211]
[1767301990748,0.04878019,88489.0,88480.0,0.01130198]
[1767301991395,0.04896319,88480.0,88476.0,0.01132]
[1767301991661,0.04858019,88480.0,88474.0,0.01132]
[1767301991864,0.04858019,88480.0,88474.0,0.02262275]
[1767301992070,0.04858019,88480.0,88474.0,0.01132]
[1767301992580,0.04858019,88480.0,88474.0,0.02262275]
[1767301992742,0.04858019,88480.0,88475.0,0.01130262]
[1767301992943,0.04858019,88480.0,88474.0,0.02180749]
[1767301993149,0.04841419,88480.0,88477.0,0.01130237]
[1767301993347,0.48841465,88486.0,88477.0,0.01130237]
[1767301993753,0.48841465,88486.0,88478.0,0.01130224]
[1767301993957,0.48841465,88486.0,88477.0,0.01130237]
[1767301994157,0.48841465,88486.0,88478.0,0.01130224]
[1767301994360,0.48841465,88486.0,88476.0,0.0113025]
[1767301994552,0.48841465,88486.0,88477.0,0.01130237]
[1767301994821,0.48841465,88486.0,88476.0,0.0113025]
[1767301995099,0.48841465,88486.0,88477.0,0.01130237]
[1767301995319,0.48841465,88486.0,88478.0,0.01130224]
[1767301995460,0.48841465,88486.0,88477.0,0.01130237]
[1767301995885,0.48841465,88486.0,88476.0,0.0113025]
[1767301996464,0.48841465,88486.0,88477.0,0.01130237]
[1767301998386,0.48841465,88486.0,88476.0,0.0113025]
[1767301999099,0.48841465,88486.0,88475.0,0.01130262]
[1767302000471,0.48841465,88486.0,88474.0,0.01050474]
[1767302000672,0.04858019,88485.0,88474.0,0.01050474]
[1767302000912,0.04858019,88485.0,88474.0,0.00995574]
[1767302002056,0.04858019,88481.0,88461.0,0.01130262]
[1767302002259,0.48841465,88471.0,88462.0,0.01132]
[1767302002575,0.04858019,88471.0,88462.0,0.01132]
[1767302003427,0.04858019,88471.0,88462.0,0.02262428]
[1767302003627,0.04858019,88471.0,88462.0,0.01132]
[1767302004037,0.04858019,88471.0,88462.0,0.02262428]
[1767302004414,0.04858019,88471.0,88462.0,0.01132]
[1767302005343,0.04858019,88471.0,88462.0,0.02262428]
[1767302005584,0.04858019,88471.0,88462.0,0.01132]
[1767302005878,0.04858019,88471.0,88462.0,0.02262428]
[1767302006101,0.04858019,88471.0,88463.0,0.01130416]
[1767302006277,0.04858019,88471.0,88462.0,0.01132]
[1767302006931,0.04858019,88471.0,88462.0,0.02262428]
[1767302007369,0.04858019,88471.0,88462.0,0.01132]
[1767302008209,0.04858019,88471.0,88462.0,0.02262428]
[1767302009233,0.04858019,88471.0,88462.0,0.01132]
[1767302009461,0.04858019,88471.0,88462.0,0.02262428]
[1767302009667,0.04858019,88471.0,88462.0,0.01132]
[1767302010341,0.04858019,88471.0,88462.0,0.02262428]
[1767302010644,0.04858019,88471.0,88462.0,0.01132]
[1767302011808,0.04858019,88471.0,88462.0,0.02262428]
[1767302012568,0.04858019,88471.0,88462.0,0.01132]
[1767302013151,0.04858019,88471.0,88462.0,0.02262428]
[1767302013564,0.04858019,88471.0,88463.0,0.01130416]
[1767302013965,0.04858019,88471.0,88462.0,0.02262428]
[1767302014323,0.04858019,88471.0,88462.0,0.01132]
[1767302014659,0.04858019,88471.0,88462.0,0.02262428]
[1767302015400,0.04858019,88471.0,88462.0,0.01132]
[1767302015885,0.04858019,88471.0,88462.0,0.02262428]
[1767302017041,0.04858019,88471.0,88462.0,0.01132]
[1767302018562,0.43946465,88472.0,88453.0,0.05656]
[1767302018563,0.04687475,88465.0,88453.0,0.05656]
[1767302018818,0.04687475,88462.0,88453.0,0.05656]
[1767302019362,0.04687475,88462.0,88453.0,0.01132]
[1767302020241,0.04687475,88462.0,88449.0,0.0001683]
[1767302020540,0.04687475,88458.0,88449.0,0.0001683]
[1767302020741,0.04687475,88458.0,88453.0,0.44828465]
[1767302025134,0.43946465,88463.0,88453.0,0.44828465]
[1767302025135,0.04687475,88456.0,88453.0,0.44828465]
[1767302025331,0.05652591,88455.0,88453.0,0.37871674]
[1767302025531,0.02262492,88457.0,88453.0,0.37867411]
[1767302025770,0.000206,88456.0,88453.0,0.37867411]
[1767302025971,0.000206,88455.0,88453.0,0.37867411]
[1767302026146,0.000206,88455.0,88453.0,0.35467411]
[1767302026964,0.000206,88455.0,88453.0,0.35463148]
[1767302035738,0.000206,88455.0,88453.0,0.35458885]
[1767302038867,0.01132,88457.0,88453.0,0.35458885]
[1767302041960,0.01422974,88457.0,88453.0,0.35458885]
[1767302043418,0.01132,88457.0,88453.0,0.35458885]
[1767302044416,0.0142517,88452.0,88449.0,0.0001683]
[1767302044801,0.00294614,88452.0,88449.0,0.0001683]
[1767302045180,0.0142517,88452.0,88449.0,0.0001683]
[1767302045388,0.00294614,88452.0,88449.0,0.0001683]
[1767302045849,0.01130531,88454.0,88449.0,0.0001683]
[1767302046065,0.01428703,88454.0,88449.0,0.0001683]
[1767302046450,0.01130543,88453.0,88449.0,0.0001683]
[1767302046811,0.00298172,88454.0,88449.0,0.0001683]
[1767302047014,0.0029992,88453.0,88449.0,0.0001683]
[1767302047423,0.01130505,88456.0,88449.0,0.0001683]
[1767302048021,0.02262492,88457.0,88449.0,0.0001683]
[1767302048690,0.01130518,88455.0,88449.0,0.0001683]
[1767302048871,0.01130505,88456.0,88449.0,0.0001683]
[1767302049659,0.01130518,88455.0,88449.0,0.0001683]
[1767302050190,0.01130518,88455.0,88442.0,0.0002145]
[1767302050191,0.43946465,88447.0,88442.0,0.0002145]
[1767302050338,0.00305045,88453.0,88447.0,0.000549]
[1767302050339,0.01132,88449.0,88447.0,0.000549]
[1767302050537,0.01132,88449.0,88442.0,0.0002145]
[1767302051154,0.010771,88449.0,88442.0,0.0002145]
[1767302073233,0.010771,88449.0,88431.0,0.05080323]
[1767302073234,0.43969043,88436.0,88431.0,0.05080323]
[1767302073443,0.01132,88439.0,88431.0,0.05090876]
[1767302073871,0.01132,88439.0,88431.0,0.05086613]
[1767302074035,0.01132,88439.0,88431.0,0.00010553]
[1767302074036,0.01130735,88438.0,88431.0,0.00010553]
[1767302074235,0.02262722,88439.0,88431.0,0.00010553]
[1767302074959,0.02444783,88438.0,88431.0,0.00010553]
[1767302077326,0.01132,88439.0,88431.0,0.00010553]
[1767302077545,0.02262722,88439.0,88431.0,0.00010553]
[1767302077939,0.01132,88439.0,88431.0,0.00010553]
[1767302087744,0.01077,88439.0,88431.0,0.00010553]
[1767302100288,0.02443562,88438.0,88431.0,0.00010553]
[1767302102078,0.03574297,88438.0,88431.0,0.00010553]
[1767302102276,0.02443562,88437.0,88431.0,0.00010553]
[1767302102455,0.0357431,88437.0,88431.0,0.00010553]
[1767302102682,0.02443562,88436.0,88431.0,0.00010553]
[1767302103027,0.01130786,88434.0,88431.0,0.00010553]
[1767302103355,0.01130786,88434.0,88403.0,0.05681891]
[1767302103356,0.01130914,88424.0,88403.0,0.05681891]
[1767302103491,0.03578248,88423.0,88421.0,0.00035196]
[1767302103821,0.01132,88422.0,88421.0,0.00035196]
[1767302104164,0.01132,88422.0,88421.0,0.05102429]
[1767302116397,0.01132,88422.0,88421.0,0.00035196]
[1767302153376,0.01132,88422.0,88421.0,0.00029542]
[1767302155250,0.01132,88422.0,88421.0,0.00023887]
[1767302155675,0.01132,88422.0,88418.0,0.0001603]
[1767302155881,0.02447126,88421.0,88418.0,0.0001603]
[1767302156258,0.01132,88422.0,88418.0,0.0001603]
[1767302156657,0.01132,88422.0,88410.0,0.0001477]
[1767302156658,0.05654836,88420.0,88410.0,0.0001477]
[1767302156859,0.03577934,88419.0,88410.0,0.0001477]
[1767302157063,0.03577947,88418.0,88410.0,0.0001477]
[1767302157273,0.01130991,88418.0,88410.0,0.0001477]
[1767302157673,0.01130978,88419.0,88410.0,0.0001477]
[1767302157876,0.03577173,88418.0,88410.0,0.0001477]
[1767302158203,0.01130991,88418.0,88410.0,0.0001477]
[1767302158768,0.01130978,88419.0,88410.0,0.0001477]
[1767302158952,0.02445767,88418.0,88410.0,0.0001477]
[1767302159368,0.01130978,88419.0,88410.0,0.0001477]
[1767302159570,0.01131004,88417.0,88410.0,0.0001477]
[1767302159805,0.01130991,88418.0,88410.0,0.0001477]
[1767302159982,0.01130978,88419.0,88410.0,0.0001477]
[1767302161086,0.02445435,88418.0,88410.0,0.0001477]
[1767302161299,0.01131004,88417.0,88410.0,7e-07]
[1767302161483,0.02445435,88418.0,88410.0,7e-07]
[1767302161484,0.01130991,88418.0,88410.0,7e-07]
[1767302161736,0.04423925,88419.0,88410.0,7e-07]
[1767302161889,0.02445183,88418.0,88410.0,7e-07]
[1767302163036,0.45127199,88420.0,88410.0,7e-07]
[1767302163202,0.03575943,88419.0,88410.0,7e-07]
[1767302163520,0.45127199,88420.0,88410.0,7e-07]
[1767302163521,0.02444965,88418.0,88410.0,7e-07]
[1767302163832,0.02444965,88417.0,88410.0,7e-07]
[1767302164001,0.01130978,88419.0,88410.0,7e-07]
[1767302164207,0.02444711,88418.0,88410.0,7e-07]
[1767302164417,0.03575702,88418.0,88410.0,7e-07]
[1767302164747,0.02444711,88417.0,88410.0,7e-07]
[1767302164938,0.43996234,88420.0,88410.0,7e-07]
[1767302165154,0.02444449,88419.0,88410.0,7e-07]
[1767302165730,0.03575427,88419.0,88410.0,7e-07]
[1767302165933,0.02444449,88418.0,88410.0,7e-07]
[1767302166872,0.45127199,88420.0,88410.0,7e-07]
[1767302167074,0.0244406,88419.0,88410.0,7e-07]
[1767302170277,0.43996234,88414.0,88404.0,0.04085953]
[1767302170486,0.011173,88413.0,88404.0,0.04085953]